Cogmind - Beta 13 @@@ ROGUE MODE // 2024.07.04 @ 15:46:37 Player: CanadianCogs Result: Destroyed by G-34 Mercenary with Small Laser Performance ------------- Evolutions (1) 500 Regions Visited (3) 600 Robots Destroyed (46) 230 Value Destroyed (965) 965 Prototype IDs (0) 0 Alien Tech Used (0) 0 Bonus (0) 0 TOTAL SCORE: 2295 Bonus ------- None Cogmind --------- Core Integrity 0/400 Matter 257/300 Energy 49/100 System Corruption 10% Temperature Warm (112) Movement Core (700) Ox13 Location -9/Materials Parts ------- > --- POWER (1) -------- (None) > --- PROPULSION (4) --- (None) > --- UTILITY (2) ------ High-capacity Storage Unit > --- WEAPON (2) ------- (None) > --- INVENTORY (20) --- Improved Ion Engine Flight Unit Flight Unit Heat Sink Large Storage Unit Structural Scanner Seismic Detector Light Armor Plating Grenade Launcher Grenade Launcher Grenade Launcher Mining Laser Mining Laser Mining Laser Mining Laser Mining Laser Mining Laser Mining Laser Peak State ------------ > --- POWER ------------ Ion Engine > --- PROPULSION ------- Compact Wheel Compact Wheel Compact Wheel Compact Wheel > --- UTILITY ---------- High-capacity Storage Unit Seismic Detector > --- WEAPON ----------- Beam Cannon Beam Cannon > --- INVENTORY -------- Flight Unit Flight Unit Large Storage Unit Structural Scanner Seismic Detector Light Armor Plating Beam Rifle Grenade Launcher Grenade Launcher Grenade Launcher Rocket Launcher Mining Laser Mining Laser Mining Laser Mining Laser Mining Laser Mining Laser Mining Laser [Rating: 11] Favorites ----------- Power Ion Engine Engine Ion Engine Propulsion Wheel Leg Aluminum Leg Wheel Wheel Flight Unit Flight Unit Utility Seismic Detector Device Seismic Detector Storage High-capacity Storage Unit Weapon Medium Laser Energy Gun Medium Laser Energy Cannon Beam Cannon Launcher Rocket Launcher Build | -11 -10 -10 -9 ------- Run | Yrd Mat Min Mat Slots Evolved 2 | . . . 2 Power . | . . . . Propulsion 2 | . . . 2 Utility . | . . . . Weapon . | . . . . Parts Attached 30 | 7 17 . 6 Power 3 | 1 2 . . Engine 3 | 1 2 . . Core . | . . . . Reactor . | . . . . Propulsion 15 | 2 9 . 4 Treads . | . . . . Leg 5 | . 5 . . Wheel 8 | 2 2 . 4 Hover . | . . . . Flight 2 | . 2 . . Utility 5 | 2 3 . . Device 2 | 1 1 . . Storage 3 | 1 2 . . Processor . | . . . . Hackware . | . . . . Protection . | . . . . Artifact . | . . . . Weapon 7 | 2 3 . 2 Energy Gun 4 | 2 1 . 1 Energy Cannon 2 | . 2 . . Ballistic Gun . | . . . . Ballistic Cannon . | . . . . Launcher 1 | . . . 1 Special Weapon . | . . . . Impact Weapon . | . . . . Slashing Weapon . | . . . . Piercing Weapon . | . . . . Special Melee Weapon . | . . . . Unidentified Prototypes . | . . . . Parts Lost 15 | . 5 . 10 Power 2 | . 1 . 1 Propulsion 6 | . 2 . 4 Utility 2 | . 1 . 1 Weapon 5 | . 1 . 4 Highest Loss Streak 9 | . 2 . 9 To Critical Strikes 2 | . . . 2 Average Slot Usage (%) 86 | . 81 100 77 Engine 12 | . 12 14 6 Leg 11 | . 5 28 . Wheel 12 | . 15 . 33 Device 12 | . 12 14 7 Storage 13 | . 14 14 11 Energy Gun 12 | . 18 . 1 Energy Cannon 8 | . . 28 16 Naked Turns . | . . . . Heaviest Build 52 | 13 52 52 52 Greatest Support 64 | 20 20 20 64 Greatest Overweight (x) 15 | . 15 2 13 Average Overweight (x) 1 | . 2 2 . Largest Inventory Capacity 20 | 8 20 20 20 Average Capacity 17 | 7 17 20 20 Most Carried 20 | 7 20 20 20 Average Carried 15 | 3 14 19 18 Final Capacity 20 | 8 20 20 20 Final Carried 20 | 6 20 20 18 Class Distribution -------------------- 60% | Mutant 39% | Scavenger-Mutant Dominant Class ---------------- Mutant | -10/Materials Scavenger-Mutant | -10/Mines Mutant | -9/Materials Resources | -11 -10 -10 -9 ----------- Run | Yrd Mat Min Mat Matter Collected 451 | 270 110 15 56 Remotely . | . . . . Salvage Created 1419 | 221 654 31 513 Parts 87 | 14 47 1 25 Haulers Intercepted 2 | . 1 . 1 Recyclers Shooed 1 | . 1 . . Parts Field Recycled . | . . . . Retrieved Matter . | . . . . Parts Self-Destructed . | . . . . Prevented . | . . . . Kills | -11 -10 -10 -9 ------- Run | Yrd Mat Min Mat Combat Hostiles Destroyed 31 | . 18 2 11 Guns 19 | . 18 . 1 Cannons 9 | . . 2 7 AOE 3 | . . . 3 Classes Destroyed 10 | 3 4 . 3 Worker 3 | 2 1 . . Builder 1 | . . . 1 Tunneler 5 | 5 . . . Hauler 2 | . 1 . 1 Recycler 1 | 1 . . . Watcher 3 | . 3 . . Swarmer 10 | . 8 2 . Grunt 18 | . 10 . 8 Brawler 1 | . . . 1 Sentry 2 | . . . 2 Best Kill Streak 7 | 4 5 2 7 Combat Bots Only 6 | . 3 2 6 Max Kills in Single Turn 2 | 1 1 2 2 Gunslinging . | . . . . Exploded 1 | . . . 1 Melee . | . . . . Uniques/NPCs Destroyed . | . . . . Combat | -11 -10 -10 -9 -------- Run | Yrd Mat Min Mat Hostile Shots Fired 186 | . 101 6 79 Missed 42 | . 27 1 14 Damage Taken 1796 | . 731 37 1028 Core 596 | . 192 . 404 Absorbed by Shields . | . . . . Regen/Repaired (Parts) 71 | . 71 . . Core Remaining (%) 61 | 100 . 23 . Volleys Fired 143 | 22 83 3 35 Largest 2 | 2 2 2 2 Hottest 120 | 100 100 120 120 Shots Fired 215 | 44 116 6 49 Gun 174 | 44 116 . 14 Cannon 38 | . . 6 32 Launcher 3 | . . . 3 Special . | . . . . Kinetic . | . . . . Thermal 212 | 44 116 6 46 Explosive 3 | . . . 3 Electromagnetic . | . . . . Robot Hit Streak 10 | 8 10 1 9 Robot Miss Streak 6 | 6 5 2 2 Penetration Max . | . . . . Secondary Targets 1 | . 1 . . Max Gunslinging Chain 1 | . 1 . . Shots Hit Robots 129 | 22 70 2 35 Core Hits 65 | 9 35 2 19 Critical Kills . | . . . . Critical Parts Destroyed . | . . . . Critical Strikes 12 | 4 8 . . Burn 12 | 4 8 . . Melee Attacks . | . . . . Impact . | . . . . Slashing . | . . . . Piercing . | . . . . Sneak Attacks . | . . . . Combat Hostiles . | . . . . Follow-up Attacks . | . . . . Damage Inflicted 2059 | 277 954 55 773 Guns 1363 | 277 929 . 157 Cannons 462 | . . 55 407 Explosions 209 | . . . 209 Melee . | . . . . Ramming 25 | . 25 . . Kinetic . | . . . . Thermal 1825 | 277 929 55 564 Explosive 209 | . . . 209 Electromagnetic . | . . . . Impact . | . . . . Slashing . | . . . . Piercing . | . . . . Highest Corruption 10 | . 1 1 10 Average Corruption 1 | . 1 1 9 Corruption Purged . | . . . . Corruption Blocked . | . . . . Effects 8 | . 3 2 3 Message Errors 2 | . . . 2 Matter Fused 2 | . . 2 . Energy Discharges 1 | . 1 . . Data Loss (minor) 1 | . 1 . . Misfires 1 | . 1 . . Weapon Failures 1 | . . . 1 Overload Shots . | . . . . Overflow Damage 31 | . . . 31 Projectiles . | . . . . Explosions 31 | . . . 31 Melee . | . . . . Knockbacks . | . . . . Impact . | . . . . Kinetic . | . . . . Secondary . | . . . . Self-Inflicted Damage 151 | . 12 . 139 Shots 3 | . . . 3 Rammed 1 | . 1 . . Targets Rammed 1 | . 1 . . Kicked . | . . . . Crushed . | . . . . Highest Temperature 356 | 289 331 180 356 Average Temperature 127 | 121 94 92 214 Received Heat Transfer 624 | . 228 . 396 Effects 7 | 3 2 . 2 Energy Bleed 3 | . 1 . 2 Interference 3 | 3 . . . Short Circuit 1 | . 1 . . Siege Activations . | . . . . Robots Corrupted . | . . . . Combat Hostiles . | . . . . Parts Fried . | . . . . Impact Corruptions 1 | . 1 . . Robots Melted . | . . . . Combat Hostiles . | . . . . Parts Melted 11 | 2 7 . 2 Heat Transferred 5624 | 1110 3182 111 1221 Parts Sabotaged . | . . . . Parts Stolen . | . . . . Parts Stripped . | . . . . Power Chain Reactions . | . . . . Alert | -11 -10 -10 -9 ------- Run | Yrd Mat Min Mat Peak Influence 278 | 40 263 114 278 Initial 44 | . 26 44 . Average 70 | 22 82 34 132 Maximum Alert Level 1 | . 1 . 1 Low Security (%) 93 | 100 93 100 64 Level 1 6 | . 6 . 35 Level 2 . | . . . . Level 3 . | . . . . Level 4 . | . . . . Level 5 . | . . . . High Security . | . . . . Max Security . | . . . . Squads Dispatched 7 | . 7 . . Investigation 5 | . 5 . . Extermination . | . . . . Reinforcement 2 | . 2 . . Assault . | . . . . Garrison . | . . . . Intercept . | . . . . Searches Triggered . | . . . . Construction Impeded . | . . . . Haulers Reinforced . | . . . . Active Scanning Responses . | . . . . Cargo Convoy Interrupts . | . . . . Stealth | -11 -10 -10 -9 --------- Run | Yrd Mat Min Mat Distress Signals 2 | . 2 . . Communications Jammed . | . . . . Distress Signals . | . . . . Times Spotted 48 | . 28 3 17 Peak Tracking Total 9 | . 6 3 9 Tactical Retreats 4 | . 2 1 1 Traps | -11 -10 -10 -9 ------- Run | Yrd Mat Min Mat Traps Triggered 1 | . 1 . . Indirectly . | . . . . Trap Hack Attempts . | . . . . Triggered . | . . . . Disarmed 2 | . 2 . . Reprogrammed . | . . . . Reused . | . . . . Traps Extracted . | . . . . Installed . | . . . . Triggered . | . . . . Machines | -11 -10 -10 -9 ---------- Run | Yrd Mat Min Mat Machines Disabled . | . . . . Max in Single Turn . | . . . . Machines Repaired . | . . . . Machines Dismantled . | . . . . Machines Sabotaged . | . . . . Overloaded Fab Kills . | . . . . Hacking | -11 -10 -10 -9 --------- Run | Yrd Mat Min Mat Machines Accessed 9 | . 9 . . Terminals 6 | . 6 . . Fabricators . | . . . . Repair Stations 1 | . 1 . . Recycling Units 2 | . 2 . . Scanalyzers . | . . . . Garrison Access . | . . . . Total Hacks 36 | . 36 . . Successful 25 | . 25 . . Failed 10 | . 10 . . Catastrophic 3 | . 3 . . Database Lockouts 1 | . 1 . . Manual 20 | . 20 . . Terminals 28 | . 28 . . Fabricators . | . . . . Repair Stations 6 | . 6 . . Recycling Units 2 | . 2 . . Scanalyzers . | . . . . Garrison Access . | . . . . Terminal Hacks 12 | . 12 . . Robot Analysis 4 | . 4 . . Level Access Points 1 | . 1 . . Terminal Index 1 | . 1 . . Alert Level 1 | . 1 . . Unreport Threat 2 | . 2 . . Disarm Traps 1 | . 1 . . Hauler Manifests 1 | . 1 . . Zone Layout 1 | . 1 . . Fabricator Hacks . | . . . . Repair Station Hacks 6 | . 6 . . Scan Component 3 | . 3 . . Repair 3 | . 3 . . Recycling Unit Hacks . | . . . . Scanalyzer . | . . . . Garrison Access Hacks . | . . . . Unauthorized Hacks 7 | . 7 . . Terminals 5 | . 5 . . Botnet 5 | . 5 . . Fabricators . | . . . . Repair Stations . | . . . . Recycling Units 2 | . 2 . . Tunnel 2 | . 2 . . Scanalyzers . | . . . . Garrison Access . | . . . . Data Cores Recovered . | . . . . Used . | . . . . Hacking Detections 7 | . 7 . . Full Trace Events 7 | . 7 . . Feedback Events . | . . . . Feedback Blocked . | . . . . Robot Schematics Acquired . | . . . . Robots Built . | . . . . Authchips . | . . . . Time . | . . . . Total Robot Build Rating . | . . . . Part Schematics Acquired . | . . . . Parts Built . | . . . . Authchips . | . . . . Time . | . . . . Total Part Build Rating . | . . . . Parts Repaired 3 | . 3 . . Time 78 | . 78 . . Parts Recycled . | . . . . Recycled Matter . | . . . . Retrieved Matter . | . . . . Retrieved Components . | . . . . Parts Scanalyzed . | . . . . Part Schematics Acquired . | . . . . Parts Damaged . | . . . . Bothacking | -11 -10 -10 -9 ------------ Run | Yrd Mat Min Mat Used RIF Installer . | . . . . Robots Hacked . | . . . . Non-combat . | . . . . Combat . | . . . . Robot Hacks Applied . | . . . . Relay Couplers Released . | . . . . Fabnet Peak Effective % . | . . . . Robots Rewired . | . . . . Allies Hacked . | . . . . Hacks Repelled . | . . . . Allies | -11 -10 -10 -9 -------- Run | Yrd Mat Min Mat Total Allies . | . . . . Largest Group . | . . . . Highest-Rated Group . | . . . . Highest-Rated Ally . | . . . . Total Orders . | . . . . Ally Attacks . | . . . . Total Damage . | . . . . Kills . | . . . . Allies Corrupted . | . . . . Allies Melted . | . . . . Intel | -11 -10 -10 -9 ------- Run | Yrd Mat Min Mat Robot Analysis Total 4 | . 4 . . Derelict Logs Recovered 1 | . . 1 . Drone Launches . | . . . . Drone Recoveries . | . . . . Exploration | -11 -10 -10 -9 ------------- Run | Yrd Mat Min Mat Turns Passed 2815 | 187 1759 677 192 Spaces Moved 1261 | 117 823 257 64 Core 34 | 18 15 . 1 Treads . | . . . . Legs 368 | . 111 257 . Wheels 846 | 99 684 . 63 Hover . | . . . . Flight 13 | . 13 . . Fastest Speed 50 | 50 80 260 100 Average Speed 161 | 75 147 260 109 Slowest Speed 800 | 80 800 260 700 Overloaded Moves . | . . . . Propulsion Burnouts . | . . . . Robots Hopped . | . . . . Cave-ins Triggered . | . . . . Exploration Rate (%) 40 | 4 97 53 9 Regions Visited 3 Branch Regions 1 Pre-discovered Areas 3 | . 2 1 . Known Exits Taken 1 | . . 1 . Unknown Exits Taken 2 | 1 1 . . Scrap Searched 1 | . . 1 . Spaces Dug . | . . . . Terrain Destroyed 10 | . . . 10 Melee . | . . . . Projectile . | . . . . AOE 10 | . . . 10 Terrain Rammed . | . . . . Walls Destroyed . | . . . . Machines Disabled . | . . . . Actions | -11 -10 -10 -9 --------- Run | Yrd Mat Min Mat Total 1835 | 172 1262 261 140 Wait 333 | 11 293 . 29 Move 1258 | 116 822 256 64 Hop . | . . . . Pick Up 50 | 14 31 1 4 Fast Attach 2 | 1 1 . . Attach 20 | 6 8 . 6 Detach 2 | . 2 . . Swap 8 | . 8 . . Drop 18 | 2 13 1 2 Fire 143 | 22 83 3 35 Melee . | . . . . Ram 1 | . 1 . . Kick . | . . . . Crush . | . . . . Escape Stasis . | . . . . Rewire . | . . . . Trap . | . . . . Miscellaneous . | . . . . Route ------- -11/Scrapyard -10/Materials (discovered 5 exits: *Mat x3 / [*Min x2]) -10/Mines -9/Materials History --------- Turn | Location | Event 16 | -11/Scrapyard | Discovered new exit (range 16) 188 | -11/Scrapyard | Entered Materials 304 | -10/Materials | Identified exit to Materials 306 | -10/Materials | Discovered new exit (range 11) 308 | -10/Materials | Build established: Mutant 446 | -10/Materials | Central database locked down 842 | -10/Materials | Repaired Lrg. Storage Unit 869 | -10/Materials | Repaired Mining Laser 897 | -10/Materials | Repaired Med. Laser 1203 | -10/Materials | Discovered new exit (range 6) 1376 | -10/Materials | Core integrity fell below 50% 1793 | -10/Materials | Build established: Scavenger-Mutant 1947 | -10/Materials | Entered Mines 1954 | -10/Mines | Received a Rocket Launcher from a helpful Derelict 2222 | -10/Mines | Found a hidden stash of uninstalled traps 2343 | -10/Mines | Learned location of Storage (-8) 2600 | -10/Mines | Discovered exit to Materials (range 7) 2624 | -10/Mines | Entered Materials 2624 | -9/Materials | Evolved 2 slots: Propulsion x2 2773 | -9/Materials | System corruption reached 10% 2777 | -9/Materials | Core integrity fell below 50% 2791 | -9/Materials | Core integrity fell below 20% 2809 | -9/Materials | Lost 9 parts (1p4n1u3w) 2816 | -9/Materials | Destroyed by G-34 Mercenary with Small Laser Last Messages --------------- 02772_ Critical hit (Smash). 02772_ Com. Wheel destroyed. 02772_ System corrupted by crushing effect (+2). 02773_ Beam Cannon destroyed. 02774_ B-36 Bruiser destroyed. 02776_ A-02 Transporter destroyed. 02776_ G-34 Mercenary destroyed. 02778_ G-47 Trooper destroyed. 02778_ Rocket Launcher destroyed. 02778_ Destroyed Rocket Launcher. 02789_ Overheating: Energy bleed (-9). 02793_ System corrupted: Beam Rifle failed to cycle. 02795_ R-06 Scavenger collects Lgt. Treads. 02798_ R-06 Scavenger collects Prototype Flight Unit. 02800_ The unstable cave ceiling collapses. 02801_ G-34 Mercenary destroyed. 02802_ WQPP6TH S1G HQ5%TE